[Event "FISU WUMSCC Men 2024"]
[Site "Entebbe"]
[Date "2024.06.29"]
[Round "8.9"]
[White "Kato, Richard"]
[Black "Mthembu, Lovers"]
[Result "1-0"]
[ECO "C65"]
[WhiteElo "1908"]
[BlackElo "1876"]
[Annotator "NA RC"]
[PlyCount "159"]
[EventDate "2024.06.24"]
[EventType "swiss"]
[EventCountry "UGA"]
[SourceTitle "playchess.com"]
[Source "ChessBase"]
[SourceQuality "1"]
[TimeControl "5400+30"]

1. e4 {[%emt 0:00:12]} e5 {[%emt 0:00:40]} 2. Nf3 {[%emt 0:00:18]} Nc6 {[%emt 0:00:05]} 3. Bb5 {[%emt 0:00:17]} Nf6 {[%emt 0:04:43]} 4. d3 {[%emt 0:00:12]} d6 {[%emt 0:00:25]} 5. c3 {[%emt 0:00:37]} Be7 {[%emt 0:01:48]} 6. Nbd2 {[%emt 0:01:15]} O-O {[%emt 0:00:14]} 7. h3 {[%emt 0:00:20] C65: Ruy Lopez: Berlin Defence (3...Nf6), unusual lines and 4 0-0 Bc5.} a6 {[%emt 0:11:50]} 8. Ba4 {[%emt 0:00:23]} b5 {[%emt 0:00:06]} 9. Bc2 {[%emt 0:00:07]} d5 {[%emt 0:00:26]} 10. O-O {[%emt 0:04:14]} dxe4 {[%emt 0:00:25]} 11. dxe4 {[%emt 0:00:04]} Bb7 {[%emt 0:01:01]} 12. Qe2 {[%emt 0:02:27]} Qd7 {[%emt 0:17:35]} 13. Rd1 {[%emt 0:02:08]} Rad8 {[%emt 0:00:18]} 14. Nf1 {[%emt 0:00:17]} Qc8 {[%emt 0:00:12]} 15. Bg5 {[%emt 0:00:52]} Rxd1 {[%emt 0:03:18]} 16. Rxd1 {[%emt 0:00:02]} Rd8 {[%emt 0:00:17]} 17. Ne3 {[%emt 0:00:39]} Rxd1+ {[%emt 0:01:13]} 18. Qxd1 {[%emt 0:00:03]} Qd8 {[%emt 0:06:02]} 19. Qe2 {[%emt 0:00:43]} h6 {[%emt 0:01:15]} 20. Bh4 {[%emt 0:02:46]} g6 {[%emt 0:00:46]} 21. Bg3 {[%emt 0:01:22]} Bd6 {[%emt 0:00:34]} 22. Bh4 {[%emt 0:09:49]} Be7 {[%emt 0:00:51]} 23. Bg3 {[%emt 0:02:36]} Bd6 {[%emt 0:00:08]} 24. Qd2 $14 {[%emt 0:00:45]} Qf8 {[%emt 0:07:11]} 25. Bh4 {[%emt 0:02:13]} Nh5 {[%emt 0:04:24]} 26. Ng4 {[%emt 0:00:50]} Kh7 {[%emt 0:02:18]} 27. Nf6+ {[%emt 0:01:56]} Nxf6 {[%emt 0:00:14]} 28. Bxf6 {[%emt 0:00:03]} Qe8 {[%emt 0:00:56]} 29. Kh2 {[%emt 0:12:27]} Be7 {[%emt 0:03:12]} 30. Bxe7 {[%emt 0:08:08]} Qxe7 {[%emt 0:00:01]} 31. Qd5 {[%emt 0:01:59]} Kg7 {[%emt 0:00:38]} 32. Bb3 {[%emt 0:00:26]} Na5 {[%emt 0:01:16]} 33. Qxe5+ {[%emt 0:00:32]} Qxe5+ {[%emt 0:00:07]} 34. Nxe5 {[%emt 0:00:03]} Nxb3 {[%emt 0:00:16]} 35. axb3 {[%emt 0:00:01]} Bxe4 {[%emt 0:00:29]} 36. b4 {[%emt 0:00:03]} Kf6 {[%emt 0:08:13]} 37. Nd7+ {[%emt 0:00:01]} Ke6 {[%emt 0:00:10]} 38. Nc5+ {[%emt 0:00:04]} Kd5 {[%emt 0:00:06]} 39. Nxa6 {[%emt 0:00:12]} Kc4 {[%emt 0:00:42]} 40. Nc5 {[%emt 0:00:33]} Bc6 {[%emt 0:00:23]} 41. Kg3 {[%emt 0:01:53]} g5 {[%emt 0:00:42]} 42. f3 {[%emt 0:01:25]} f5 {[%emt 0:01:06]} 43. h4 {[%emt 0:00:32]} Bd5 {[%emt 0:01:28]} 44. hxg5 {[%emt 0:00:50]} hxg5 {[%emt 0:00:08]} 45. Kf2 {[%emt 0:00:03]} g4 {[%emt 0:02:28]} 46. fxg4 {[%emt 0:01:02]} fxg4 {[%emt 0:00:08]} 47. g3 {[%emt 0:00:09]} Bh1 {[%emt 0:01:07]} 48. Ke3 {[%emt 0:00:12]} Bf3 {[%emt 0:00:26]} 49. Kf4 {[%emt 0:03:57]} Kd5 {[%emt 0:00:24]} 50. Nb3 {[%emt 0:01:21]} Bd1 {[%emt 0:01:09]} 51. Nd4 {[%emt 0:00:05]} Kc4 {[%emt 0:09:13]} 52. Ke3 {[%emt 0:01:35]} Ba4 {[%emt 0:04:47]} 53. Kd2 {[%emt 0:00:27]} Bb3 {[%emt 0:00:24]} 54. Nxb3 {[%emt 0:04:45]} Kxb3 {[%emt 0:00:05]} 55. Kc1 {[%emt 0:00:00]} Ka2 {[%emt 0:00:32]} 56. Kc2 {[%emt 0:00:09]} c6 {[%emt 0:00:31]} 57. c4 {[%emt 0:02:20]} Ka1 {[%emt 0:01:07]} 58. c5 {[%emt 0:03:27]} Ka2 {[%emt 0:00:05]} 59. Kc3 {[%emt 0:00:14]} Ka1 {[%emt 0:00:26]} 60. Kd4 {[%emt 0:01:09]} Kxb2 {[%emt 0:00:09]} 61. Ke5 {[%emt 0:00:01]} Ka3 {[%emt 0:00:56]} 62. Kd6 {[%emt 0:00:01]} Kxb4 {[%emt 0:00:13]} 63. Kxc6 {[%emt 0:00:00]} Ka4 {[%emt 0:00:21]} 64. Kd5 {[%emt 0:00:12]} b4 {[%emt 0:00:07]} 65. c6 {[%emt 0:00:01]} b3 {[%emt 0:00:06]} 66. c7 {[%emt 0:00:02]} b2 {[%emt 0:00:06]} 67. c8=Q {[%emt 0:00:12]} b1=Q {[%emt 0:00:07]} 68. Qa8+ {[%emt 0:00:04]} Kb3 {[%emt 0:00:10]} 69. Qb7+ {[%emt 0:00:02]} Kc2 {[%emt 0:00:06]} 70. Qxb1+ {[%emt 0:00:01]} Kxb1 {[%emt 0:00:07]} 71. Ke4 {[%emt 0:00:01]} Kc2 {[%emt 0:00:10]} 72. Kf4 {[%emt 0:00:00]} Kd3 {[%emt 0:00:13]} 73. Kxg4 {[%emt 0:00:02]} Ke4 {[%emt 0:00:10]} 74. Kg5 {[%emt 0:00:19]} Ke5 {[%emt 0:00:17]} 75. g4 {[%emt 0:00:10]} Ke6 {[%emt 0:00:03]} 76. Kg6 {[%emt 0:00:05]} Ke7 {[%emt 0:00:03]} 77. Kg7 {[%emt 0:00:12]} Ke6 {[%emt 0:00:11]} 78. g5 {[%emt 0:00:01]} Ke7 {[%emt 0:00:17]} 79. g6 {[%emt 0:00:02]} Ke8 {[%emt 0:00:18]} 80. Kh7 {[%emt 0:00:10]} 1-0

[Event "FISU WUMSCC Men 2024"]
[Site "Entebbe"]
[Date "2024.06.29"]
[Round "8.10"]
[White "Musasizi, Emmanuel"]
[Black "Jakab, Bela"]
[Result "1/2-1/2"]
[ECO "C01"]
[WhiteElo "1966"]
[BlackElo "2390"]
[Annotator "RC"]
[PlyCount "84"]
[EventDate "2024.06.24"]
[EventType "swiss"]
[EventCountry "UGA"]
[SourceTitle "playchess.com"]
[Source "ChessBase"]
[SourceQuality "1"]
[TimeControl "5400+30"]

1. e4 {[%emt 0:00:56]} e6 {[%emt 0:00:05]} 2. d4 {[%emt 0:00:07]} d5 {[%emt 0:00:03]} 3. exd5 {[%emt 0:00:18]} exd5 {[%emt 0:00:05]} 4. Bd3 {[%emt 0:00:07]} Bd6 {[%emt 0:00:03]} 5. Nc3 {[%emt 0:00:27]} Ne7 {[%emt 0:00:23]} 6. Nb5 {[%emt 0:00:58]} Nbc6 {[%emt 0:01:12]} 7. c3 {[%emt 0:00:32]} Bf5 {[%emt 0:01:37]} 8. Ne2 {[%emt 0:00:18]} a6 {[%emt 0:00:51]} 9. Nxd6+ {[%emt 0:00:13]} Qxd6 {[%emt 0:00:04]} 10. O-O {[%emt 0:01:32]} O-O {[%emt 0:00:59]} 11. Bf4 {[%emt 0:00:42]} Qd7 {[%emt 0:01:01]} 12. Qc2 {[%emt 0:02:17]} Bxd3 {[%emt 0:02:24]} 13. Qxd3 {[%emt 0:00:09]} Nd8 {[%emt 0:00:20]} 14. b3 {[%emt 0:01:21]} Ne6 {[%emt 0:00:37]} 15. Bd2 {[%emt 0:00:28]} b6 {[%emt 0:00:59]} 16. Nf4 {[%emt 0:00:34]} Nxf4 {[%emt 0:01:06]} 17. Bxf4 {[%emt 0:00:17]} c5 {[%emt 0:00:54]} 18. dxc5 {[%emt 0:01:43]} bxc5 {[%emt 0:00:05]} 19. Rad1 {[%emt 1:27:01]} Rfd8 {[%emt 1:27:12]} 20. b4 {[%emt 0:00:00]} Ng6 {[%emt 0:00:00]} 21. Bg3 {[%emt 0:00:00]} c4 {[%emt 0:00:00]} 22. Qd4 {[%emt 0:00:00]} Nf8 {[%emt 0:00:00]} 23. Bh4 {[%emt 0:00:00]} f6 {[%emt 0:00:00]} 24. Rfe1 {[%emt 0:00:00]} Re8 {[%emt 0:00:00]} 25. f3 {[%emt 0:00:00]} Rxe1+ {[%emt 0:00:00]} 26. Bxe1 {[%emt 0:00:00]} Rd8 {[%emt 0:00:00]} 27. Qb6 {[%emt 0:00:00]} Qd6 {[%emt 0:00:00]} 28. Bf2 {[%emt 0:00:00]} Kf7 {[%emt 0:00:00]} 29. a4 {[%emt 0:00:00]} Qxb6 {[%emt 0:00:00]} 30. Bxb6 {[%emt 0:00:00]} Rd6 {[%emt 0:00:00]} 31. Bc5 {[%emt 0:00:00]} Rd8 {[%emt 0:00:00]} 32. Bxf8 {[%emt 0:00:00]} Kxf8 {[%emt 0:00:00]} 33. Kf2 {[%emt 0:00:00]} Ke7 {[%emt 0:00:00]} 34. a5 {[%emt 0:00:00]} Kd6 {[%emt 0:00:00]} 35. Re1 {[%emt 0:00:00]} Kc6 {[%emt 0:00:00]} 36. Re6+ {[%emt 0:00:00]} Kb5 {[%emt 0:00:00]} 37. Rb6+ {[%emt 0:00:00]} Ka4 {[%emt 0:00:00]} 38. Ke3 {[%emt 0:00:00]} d4+ {[%emt 0:00:00]} 39. cxd4 {[%emt 0:00:00]} Kb3 {[%emt 0:00:00]} 40. b5 {[%emt 0:00:00]} axb5 {[%emt 0:00:00]} 41. Rxb5+ {[%emt 0:00:00]} Kc3 {[%emt 0:00:00]} 42. d5 {[%emt 0:00:00]} Re8+ {[%emt 0:00:00]} 1/2-1/2

[Event "FISU WUMSCC Men 2024"]
[Site "Entebbe"]
[Date "2024.06.29"]
[Round "8.11"]
[White "Hemeni, Simamnkele"]
[Black "Alshnaiber, Yazeed"]
[Result "1/2-1/2"]
[ECO "E11"]
[WhiteElo "1866"]
[BlackElo "1831"]
[Annotator "NA RC"]
[PlyCount "160"]
[EventDate "2024.06.24"]
[EventType "swiss"]
[EventCountry "UGA"]
[SourceTitle "playchess.com"]
[Source "ChessBase"]
[SourceQuality "1"]
[TimeControl "5400+30"]

1. d4 {[%emt 0:00:10]} d5 {[%emt 0:00:06]} 2. c4 {[%emt 0:00:07]} e6 {[%emt 0:00:04]} 3. g3 {[%emt 0:00:08]} Nf6 {[%emt 0:00:06]} 4. Bg2 {[%emt 0:00:04]} Bb4+ {[%emt 0:00:10]} 5. Bd2 {[%emt 0:00:09]} a5 {[%emt 0:00:05]} 6. Nf3 {[%emt 0:00:20]} O-O {[%emt 0:00:08]} 7. O-O {[%emt 0:00:05]} dxc4 {[%emt 0:00:03] E11: Bogo-Indian.} 8. Qc2 {[%emt 0:02:48]} Bxd2 {[%emt 0:00:09]} 9. Nbxd2 {[%emt 0:00:02]} b5 {[%emt 0:00:06]} 10. a4 {[%emt 0:05:08]} c6 {[%emt 0:00:18]} 11. b3 {[%emt 0:07:01]} cxb3 {[%emt 0:04:48]} 12. Nxb3 {[%emt 0:01:16]} Nd5 {[%emt 0:20:43]} 13. e4 {[%emt 0:01:29]} Nb6 {[%emt 0:08:27]} 14. Nc5 {[%emt 0:05:53]} N8d7 {[%emt 0:01:38]} 15. Rfb1 {[%emt 0:01:10]} Nxc5 {[%emt 0:03:05]} 16. dxc5 {[%emt 0:00:35]} Nxa4 {[%emt 0:00:48]} 17. e5 {[%emt 0:03:05]} Qe7 {[%emt 0:03:21]} 18. Nd4 {[%emt 0:03:21]} Bd7 $11 {[%emt 0:05:26]} (18... Nxc5 $2 {perishes.} 19. Nxc6 (19. Bxc6 Rb8 $11) 19... Qe8 20. Qxc5 $18) 19. Nxc6 {[%emt 0:06:11]} Bxc6 {[%emt 0:00:10]} 20. Bxc6 {[%emt 0:00:06]} Rac8 {[%emt 0:00:06]} 21. Rxb5 {[%emt 0:00:32]} Rxc6 {[%emt 0:02:39]} 22. Rxa4 {[%emt 0:00:06]} Rfc8 {[%emt 0:00:05]} 23. Raxa5 {[%emt 0:00:55]} g6 {[%emt 0:00:12]} 24. f4 {[%emt 0:07:45]} g5 {[%emt 0:02:34]} 25. Qc3 {[%emt 0:01:21]} Kh8 {[%emt 0:02:11]} 26. fxg5 {[%emt 0:07:41]} Qxg5 {[%emt 0:00:27]} 27. Rb7 {[%emt 0:00:14]} Kg8 {[%emt 0:02:23]} 28. Rd7 {[%emt 0:14:28]} Qf5 {[%emt 0:01:06]} 29. Qe3 {[%emt 0:02:59]} Qb1+ {[%emt 0:08:37]} 30. Kg2 {[%emt 0:02:32]} Qf5 {[%emt 0:00:26]} 31. Rd2 {[%emt 0:02:37]} R6c7 {[%emt 0:05:42]} 32. Rf2 {[%emt 0:01:25]} Qg6 {[%emt 0:00:26]} 33. Rf6 {[%emt 0:00:43]} Qc2+ {[%emt 0:11:53]} 34. Kh3 {[%emt 0:10:12]} Rxc5 {[%emt 0:00:26]} 35. Qg5+ {[%emt 0:02:16]} Kf8 {[%emt 0:01:05]} 36. Qh6+ {[%emt 0:03:37]} Kg8 {[%emt 0:01:43]} 37. Rxc5 {[%emt 0:03:08]} Qxc5 {[%emt 0:00:13]} 38. Qg5+ {[%emt 0:01:15]} Kf8 {[%emt 0:00:05]} 39. Rf4 {[%emt 0:00:25]} Qc2 {[%emt 0:06:09]} 40. Rg4 {[%emt 0:01:29]} Qg6 {[%emt 0:03:10]} 41. Qf4 {[%emt 0:00:02]} Qh5+ {[%emt 0:00:35]} 42. Rh4 {[%emt 0:00:43]} Qg6 {[%emt 0:03:02]} 43. Rh6 {[%emt 0:00:41]} Qd3 {[%emt 0:00:05]} 44. Rxe6 {[%emt 0:01:41]} Qd7 {[%emt 0:01:36]} 45. Qb4+ {[%emt 0:00:52]} Kg8 {[%emt 0:01:28]} 46. Qg4+ {[%emt 0:00:02]} Kf8 {[%emt 0:00:14]} 47. Rf6 {[%emt 0:01:14]} Qxg4+ {[%emt 0:01:02]} 48. Kxg4 {[%emt 0:00:01]} Kg7 {[%emt 0:00:07]} 49. Rf4 {[%emt 0:04:56]} Rc2 {[%emt 0:00:25]} 50. h3 {[%emt 0:00:00]} Rc3 {[%emt 0:00:14]} 51. Re4 {[%emt 0:00:00]} Kg6 {[%emt 0:00:27]} 52. Kf4 {[%emt 0:00:00]} Rc1 {[%emt 0:01:04]} 53. Rb4 {[%emt 0:02:00]} Rf1+ {[%emt 0:00:15]} 54. Ke4 {[%emt 0:00:00]} Re1+ {[%emt 0:00:14]} 55. Kf4 {[%emt 0:00:00]} Rf1+ {[%emt 0:00:03]} 56. Ke4 {[%emt 0:00:00]} Re1+ {[%emt 0:00:06]} 57. Kd5 {[%emt 0:00:00]} Rd1+ {[%emt 0:02:26]} 58. Rd4 {[%emt 0:00:00]} Re1 {[%emt 0:00:12]} 59. Kd6 {[%emt 0:00:18]} h5 {[%emt 0:00:16]} 60. Rd3 {[%emt 0:00:41]} Re2 {[%emt 0:02:29]} 61. Rf3 {[%emt 0:01:03]} Re1 {[%emt 0:00:08]} 62. Rf6+ {[%emt 0:00:37]} Kg7 {[%emt 0:00:07]} 63. Rf3 {[%emt 0:00:51]} Kg6 {[%emt 0:00:04]} 64. h4 {[%emt 0:00:26]} Ra1 {[%emt 0:01:41]} 65. Rf6+ {[%emt 0:00:22]} Kg7 {[%emt 0:00:06]} 66. Rf5 {[%emt 0:00:11]} Ra6+ {[%emt 0:00:25]} 67. Kd5 {[%emt 0:01:09]} Ra5+ {[%emt 0:00:06]} 68. Ke4 {[%emt 0:00:03]} Ra4+ {[%emt 0:00:07]} 69. Kf3 {[%emt 0:00:01]} Ra3+ {[%emt 0:00:08]} 70. Kg2 {[%emt 0:00:11]} Kg6 {[%emt 0:00:56]} 71. Rg5+ {[%emt 0:00:34]} Kh6 {[%emt 0:00:05]} 72. Kf2 {[%emt 0:00:22]} Rb3 {[%emt 0:00:27]} 73. Rf5 {[%emt 0:00:07]} Kg6 {[%emt 0:00:08]} 74. Rf6+ {[%emt 0:00:08]} Kg7 {[%emt 0:00:05]} 75. Rf3 {[%emt 0:00:02]} Rb5 {[%emt 0:01:03]} 76. Re3 {[%emt 0:00:01]} Kg6 {[%emt 0:00:10]} 77. Kf3 {[%emt 0:00:01]} Kf5 {[%emt 0:00:09]} 78. Ra3 {[%emt 0:03:01]} Rxe5 {[%emt 0:01:26]} 79. Ra4 {[%emt 0:00:04]} Rb5 {[%emt 0:00:14]} 80. Rf4+ {[%emt 0:00:11]} Kg6 {[%emt 0:00:16]} 1/2-1/2

[Event "FISU WUMSCC Men 2024"]
[Site "Entebbe"]
[Date "2024.06.29"]
[Round "8.12"]
[White "Kabuye Charity Raphael"]
[Black "Selepe, Lwazi"]
[Result "0-1"]
[ECO "A48"]
[WhiteElo "1761"]
[BlackElo "1913"]
[Annotator "NA RC"]
[PlyCount "80"]
[EventDate "2024.06.24"]
[EventType "swiss"]
[EventCountry "UGA"]
[SourceTitle "playchess.com"]
[Source "ChessBase"]
[SourceQuality "1"]
[TimeControl "5400+30"]

1. d4 {[%emt 0:00:13]} Nf6 {[%emt 0:00:27]} 2. Nf3 {[%emt 0:00:54]} g6 {[%emt 0:00:58]} 3. Bf4 {[%emt 0:12:58]} d6 {[%emt 0:00:32]} 4. Nc3 {[%emt 0:01:51]} c6 {[%emt 0:04:03]} 5. e4 {[%emt 0:00:53]} Qa5 {[%emt 0:01:11]} 6. Qd2 {[%emt 0:01:19]} Bg4 {[%emt 0:00:55]} 7. Be2 {[%emt 0:06:29]} Bxf3 {[%emt 0:03:21]} 8. Bxf3 {[%emt 0:01:01]} Nbd7 {[%emt 0:00:20]} 9. O-O {[%emt 0:04:59]} Bg7 {[%emt 0:00:34]} 10. Bh6 {[%emt 0:03:29]} O-O {[%emt 0:00:16]} 11. Bxg7 {[%emt 0:00:30]} Kxg7 {[%emt 0:00:02]} 12. a4 {[%emt 0:00:29]} e5 {[%emt 0:00:36]} 13. d5 {[%emt 0:02:00]} cxd5 {[%emt 0:00:53]} 14. exd5 {[%emt 0:00:37]} Rac8 {[%emt 0:01:02]} 15. Rfd1 {[%emt 0:01:51]} a6 {[%emt 0:01:15]} 16. g3 {[%emt 0:00:47]} Nb6 {[%emt 0:02:57]} 17. Be2 $17 {[%emt 0:19:30]} Rc5 {[%emt 0:11:16]} 18. Rab1 {[%emt 0:02:10]} Qb4 {[%emt 0:00:25]} 19. h4 {[%emt 0:07:00]} Ne4 {[%emt 0:10:42]} 20. Nxe4 {[%emt 0:03:03]} Qxe4 {[%emt 0:00:07]} 21. b4 {[%emt 0:01:18]} Rxc2 {[%emt 0:02:14]} 22. Bd3 {[%emt 0:02:16]} Rxd2 {[%emt 0:00:06]} 23. Bxe4 {[%emt 0:00:10]} Rxd1+ {[%emt 0:00:09]} 24. Rxd1 {[%emt 0:00:08]} f5 {[%emt 0:00:49]} 25. a5 {[%emt 0:01:03]} fxe4 {[%emt 0:00:17]} 26. axb6 {[%emt 0:00:16]} Rc8 {[%emt 0:00:02]} 27. Rb1 {[%emt 0:02:14]} Rc4 {[%emt 0:00:45]} 28. Kf1 {[%emt 0:03:59]} Kf6 {[%emt 0:00:57]} 29. Ke2 {[%emt 0:00:41]} Rd4 {[%emt 0:00:31]} 30. b5 {[%emt 0:21:22]} a5 {[%emt 0:01:15]} 31. Rc1 {[%emt 0:00:00]} Rxd5 {[%emt 0:00:04]} 32. Rc7 {[%emt 0:00:00]} Rxb5 {[%emt 0:00:02]} 33. Rxb7 {[%emt 0:00:00]} h5 {[%emt 0:03:15]} 34. Rb8 {[%emt 0:00:00]} Ke6 {[%emt 0:01:33]} 35. b7 {[%emt 0:00:00]} Kd7 {[%emt 0:01:55]} 36. Rg8 {[%emt 0:00:00]} Rxb7 {[%emt 0:00:02]} 37. Rxg6 {[%emt 0:00:00]} a4 {[%emt 0:01:27]} 38. Rg7+ {[%emt 0:00:00]} Kc6 {[%emt 0:00:07]} 39. Rxb7 {[%emt 0:00:00]} Kxb7 {[%emt 0:00:09]} 40. g4 {[%emt 0:00:00]} a3 {[%emt 0:00:08]} 0-1